[Event "Late Titled Tuesday Blitz February 8 2022"]
[White "Ruiz Aguilar, Pablo Alexander"]
[Black "Mladenovic, Stefan"]
[WhiteFideId "4401352"]
[BlackFideId "942227"]
[WhiteElo "2125"]
[BlackElo "2355"]
[Result "1-0"]
[Round "05"]
[TimeControl "180+1"]
[Date "2022.02.09"]
[WhiteClock "0:01:15"]
[BlackClock "0:00:26"]

1. e4 {[%clk 0:03:00]}  c5 {[%clk 0:02:58]} 2. Nf3 {[%clk 0:03:00]}  d6 {[%clk 0:02:56]} 3. d4 {[%clk 0:03:01]}  cxd4 {[%clk 0:02:57]} 4. Nxd4 {[%clk 0:03:01]}  Nf6 {[%clk 0:02:57]} 5. Nc3 {[%clk 0:03:02]}  g6 {[%clk 0:02:58]} 6. Be3 {[%clk 0:02:58]}  Bg7 {[%clk 0:02:58]} 7. f3 {[%clk 0:02:59]}  O-O {[%clk 0:02:58]} 8. Qd2 {[%clk 0:02:59]}  Nc6 {[%clk 0:02:58]} 9. Bc4 {[%clk 0:02:59]}  Bd7 {[%clk 0:02:58]} 10. O-O-O {[%clk 0:02:59]}  Na5 {[%clk 0:02:59]} 11. Be2 {[%clk 0:02:55]}  Rb8 {[%clk 0:02:59]} 12. h4 {[%clk 0:02:48]}  b5 {[%clk 0:03:00]} 13. Bh6 {[%clk 0:02:45]}  Nc4 {[%clk 0:02:59]} 14. Bxc4 {[%clk 0:02:44]}  bxc4 {[%clk 0:03:00]} 15. Bxg7 {[%clk 0:02:44]}  Kxg7 {[%clk 0:03:01]} 16. h5 {[%clk 0:02:44]}  Kg8 {[%clk 0:03:00]} 17. Qh6 {[%clk 0:02:40]}  Qb6 {[%clk 0:02:58]} 18. g4 {[%clk 0:02:31]}  Qxb2+ {[%clk 0:02:56]} 19. Kd2 {[%clk 0:02:31]}  Qb4 {[%clk 0:02:00]} 20. hxg6 {[%clk 0:02:19]}  fxg6 {[%clk 0:01:59]} 21. g5 {[%clk 0:02:18]}  Nxe4+ {[%clk 0:01:49]} 22. fxe4 {[%clk 0:02:18]}  Rf2+ {[%clk 0:01:40]} 23. Ne2 {[%clk 0:02:07]}  Bg4 {[%clk 0:00:50]} 24. Qxh7+ {[%clk 0:01:58]}  Kf8 {[%clk 0:00:50]} 25. Rdf1 {[%clk 0:01:32]}  Rxf1 {[%clk 0:00:41]} 26. Rxf1+ {[%clk 0:01:32]}  Ke8 {[%clk 0:00:38]} 27. Rb1 {[%clk 0:01:29]}  Qxb1 {[%clk 0:00:34]} 28. Nxb1 {[%clk 0:01:28]}  Rxb1 {[%clk 0:00:35]} 29. Qxg6+ {[%clk 0:01:23]}  Kd7 {[%clk 0:00:33]} 30. Qf7 {[%clk 0:01:17]}  c3+ {[%clk 0:00:28]} 31. Nxc3 {[%clk 0:01:17]}  Be6 {[%clk 0:00:27]} 32. Qxe6+ {[%clk 0:01:14]}  Kxe6 {[%clk 0:00:24]} 33. Nxb1 {[%clk 0:01:15]}  Kf7 {[%clk 0:00:25]} 34. Ke3 {[%clk 0:01:15]}  Kg6 {[%clk 0:00:26]} 35. Kf4 {[%clk 0:01:15]} 1-0


[Site "https://www.chess.com"]

[Event "Late Titled Tuesday Blitz February 8 2022"]
[White "Sarana, Alexey"]
[Black "Yoo, Christopher Woojin"]
[WhiteFideId "24133795"]
[BlackFideId "30909694"]
[WhiteElo "2665"]
[BlackElo "2105"]
[Result "1-0"]
[Round "05"]
[TimeControl "180+1"]
[Date "2022.02.08"]
[WhiteClock "0:01:44"]
[BlackClock "0:01:44"]

1. d4 {[%clk 0:03:00]}  Nf6 {[%clk 0:02:59]} 2. c4 {[%clk 0:02:50]}  e6 {[%clk 0:02:59]} 3. Nc3 {[%clk 0:02:50]}  Bb4 {[%clk 0:02:58]} 4. e3 {[%clk 0:02:51]}  O-O {[%clk 0:02:57]} 5. Bd3 {[%clk 0:02:52]}  d5 {[%clk 0:02:57]} 6. a3 {[%clk 0:02:52]}  Be7 {[%clk 0:02:54]} 7. Nf3 {[%clk 0:02:52]}  b6 {[%clk 0:02:51]} 8. cxd5 {[%clk 0:02:50]}  exd5 {[%clk 0:02:50]} 9. O-O {[%clk 0:02:51]}  Bb7 {[%clk 0:02:50]} 10. b4 {[%clk 0:02:51]}  Nbd7 {[%clk 0:02:50]} 11. Bb2 {[%clk 0:02:49]}  c5 {[%clk 0:02:49]} 12. dxc5 {[%clk 0:02:46]}  bxc5 {[%clk 0:02:50]} 13. bxc5 {[%clk 0:02:46]}  Nxc5 {[%clk 0:02:51]} 14. Be2 {[%clk 0:02:40]}  Rb8 {[%clk 0:02:50]} 15. Rb1 {[%clk 0:02:40]}  Nfe4 {[%clk 0:02:49]} 16. Nb5 {[%clk 0:02:37]}  Bf6 {[%clk 0:02:30]} 17. Nbd4 {[%clk 0:02:30]}  Qa5 {[%clk 0:02:25]} 18. Qe1 {[%clk 0:02:29]}  Qa4 {[%clk 0:02:19]} 19. Bb5 {[%clk 0:02:22]}  Qxb5 {[%clk 0:01:54]} 20. Nxb5 {[%clk 0:02:16]}  Nd3 {[%clk 0:01:55]} 21. Qe2 {[%clk 0:01:47]}  Nxb2 {[%clk 0:01:49]} 22. Rxb2 {[%clk 0:01:48]}  Bxb2 {[%clk 0:01:47]} 23. Qxb2 {[%clk 0:01:49]}  Bc6 {[%clk 0:01:47]} 24. a4 {[%clk 0:01:48]}  a6 {[%clk 0:01:47]} 25. Qc2 {[%clk 0:01:45]}  axb5 {[%clk 0:01:45]} 26. Qxc6 {[%clk 0:01:44]}  b4 {[%clk 0:01:45]} 27. Qxd5 {[%clk 0:01:44]}  Nc3 {[%clk 0:01:44]} 28. Qb3 {[%clk 0:01:44]} 1-0


[Site "https://www.chess.com"]

[Event "Late Titled Tuesday Blitz February 8 2022"]
[White "Sarkar, Justin"]
[Black "Vovk, Orest"]
[WhiteFideId "2010011"]
[BlackFideId "14113490"]
[WhiteElo "2038"]
[BlackElo "2203"]
[Result "0-1"]
[Round "05"]
[TimeControl "180+1"]
[Date "2022.02.09"]
[WhiteClock "0:00:02"]
[BlackClock "0:00:06"]

1. d4 {[%clk 0:02:59]}  e5 {[%clk 0:02:58]} 2. dxe5 {[%clk 0:02:58]}  Nc6 {[%clk 0:02:59]} 3. Nf3 {[%clk 0:02:55]}  Qe7 {[%clk 0:02:59]} 4. Nc3 {[%clk 0:02:45]}  Nxe5 {[%clk 0:02:59]} 5. Nd5 {[%clk 0:02:43]}  Nxf3+ {[%clk 0:02:59]} 6. gxf3 {[%clk 0:02:43]}  Qd8 {[%clk 0:03:00]} 7. Bf4 {[%clk 0:02:32]}  d6 {[%clk 0:03:00]} 8. Qd4 {[%clk 0:02:29]}  Be6 {[%clk 0:03:01]} 9. O-O-O {[%clk 0:02:26]}  c6 {[%clk 0:02:37]} 10. Nc3 {[%clk 0:02:19]}  Qa5 {[%clk 0:02:37]} 11. Bxd6 {[%clk 0:01:48]}  O-O-O {[%clk 0:02:24]} 12. Qe5 {[%clk 0:01:43]}  Qxe5 {[%clk 0:02:11]} 13. Bxe5 {[%clk 0:01:44]}  Rxd1+ {[%clk 0:02:11]} 14. Kxd1 {[%clk 0:01:44]}  Nf6 {[%clk 0:02:11]} 15. a3 {[%clk 0:01:14]}  Be7 {[%clk 0:01:51]} 16. e3 {[%clk 0:01:11]}  Rd8+ {[%clk 0:01:51]} 17. Kc1 {[%clk 0:01:11]}  g6 {[%clk 0:01:51]} 18. Bd3 {[%clk 0:01:06]}  Nd5 {[%clk 0:01:51]} 19. Nxd5 {[%clk 0:00:59]}  Rxd5 {[%clk 0:01:51]} 20. f4 {[%clk 0:00:56]}  Bd6 {[%clk 0:01:48]} 21. e4 {[%clk 0:00:36]}  Bxe5 {[%clk 0:01:45]} 22. exd5 {[%clk 0:00:35]}  Bxd5 {[%clk 0:01:43]} 23. Re1 {[%clk 0:00:31]}  Bxf4+ {[%clk 0:01:43]} 24. Kb1 {[%clk 0:00:30]}  Bxh2 {[%clk 0:01:43]} 25. Re8+ {[%clk 0:00:23]}  Kd7 {[%clk 0:01:42]} 26. Rh8 {[%clk 0:00:22]}  h5 {[%clk 0:01:42]} 27. c4 {[%clk 0:00:19]}  Be6 {[%clk 0:01:39]} 28. Kc2 {[%clk 0:00:19]}  Bg1 {[%clk 0:01:38]} 29. f4 {[%clk 0:00:14]}  Bf2 {[%clk 0:01:36]} 30. f5 {[%clk 0:00:13]}  gxf5 {[%clk 0:01:34]} 31. Rxh5 {[%clk 0:00:13]}  f4 {[%clk 0:01:33]} 32. Bf5 {[%clk 0:00:11]}  Bd4 {[%clk 0:01:26]} 33. b3 {[%clk 0:00:07]}  f3 {[%clk 0:01:25]} 34. Kd3 {[%clk 0:00:05]}  f2 {[%clk 0:01:24]} 35. Bxe6+ {[%clk 0:00:05]}  fxe6 {[%clk 0:01:19]} 36. Ke2 {[%clk 0:00:05]}  c5 {[%clk 0:01:19]} 37. Rh7+ {[%clk 0:00:04]}  Kc6 {[%clk 0:01:19]} 38. b4 {[%clk 0:00:04]}  a6 {[%clk 0:01:12]} 39. Re7 {[%clk 0:00:04]}  e5 {[%clk 0:01:12]} 40. Re6+ {[%clk 0:00:03]}  Kd7 {[%clk 0:01:12]} 41. Rb6 {[%clk 0:00:03]}  Kc7 {[%clk 0:01:12]} 42. Re6 {[%clk 0:00:02]}  cxb4 {[%clk 0:01:09]} 43. axb4 {[%clk 0:00:02]}  b6 {[%clk 0:01:08]} 44. Re7+ {[%clk 0:00:02]}  Kb8 {[%clk 0:01:02]} 45. Re8+ {[%clk 0:00:02]}  Kb7 {[%clk 0:01:00]} 46. Re7+ {[%clk 0:00:03]}  Kc6 {[%clk 0:01:00]} 47. Ra7 {[%clk 0:00:03]}  a5 {[%clk 0:00:56]} 48. bxa5 {[%clk 0:00:03]}  bxa5 {[%clk 0:00:52]} 49. Rxa5 {[%clk 0:00:03]}  Kb6 {[%clk 0:00:49]} 50. Rd5 {[%clk 0:00:03]}  Kc6 {[%clk 0:00:49]} 51. Rd8 {[%clk 0:00:03]}  Kc5 {[%clk 0:00:49]} 52. Rc8+ {[%clk 0:00:03]}  Kb4 {[%clk 0:00:49]} 53. Rc7 {[%clk 0:00:03]}  e4 {[%clk 0:00:47]} 54. Rc8 {[%clk 0:00:02]}  e3 {[%clk 0:00:47]} 55. c5 {[%clk 0:00:02]}  Bxc5 {[%clk 0:00:47]} 56. Rb8+ {[%clk 0:00:03]}  Kc4 {[%clk 0:00:48]} 57. Rc8 {[%clk 0:00:03]}  Kd5 {[%clk 0:00:48]} 58. Rd8+ {[%clk 0:00:03]}  Ke6 {[%clk 0:00:45]} 59. Re8+ {[%clk 0:00:03]}  Kd7 {[%clk 0:00:44]} 60. Rg8 {[%clk 0:00:03]}  Bb4 {[%clk 0:00:41]} 61. Rg5 {[%clk 0:00:03]}  Bd2 {[%clk 0:00:41]} 62. Rd5+ {[%clk 0:00:03]}  Ke6 {[%clk 0:00:41]} 63. Rb5 {[%clk 0:00:03]}  Bc3 {[%clk 0:00:34]} 64. Rc5 {[%clk 0:00:03]}  Bd4 {[%clk 0:00:34]} 65. Rb5 {[%clk 0:00:03]}  Kd6 {[%clk 0:00:34]} 66. Rg5 {[%clk 0:00:02]}  Kc6 {[%clk 0:00:32]} 67. Rf5 {[%clk 0:00:03]}  Bc5 {[%clk 0:00:33]} 68. Rf6+ {[%clk 0:00:02]}  Kb5 {[%clk 0:00:33]} 69. Rf4 {[%clk 0:00:02]}  Ba7 {[%clk 0:00:31]} 70. Re4 {[%clk 0:00:03]}  Kc6 {[%clk 0:00:28]} 71. Rf4 {[%clk 0:00:03]}  Kd5 {[%clk 0:00:28]} 72. Rg4 {[%clk 0:00:03]}  Ke5 {[%clk 0:00:28]} 73. Rh4 {[%clk 0:00:03]}  Kf5 {[%clk 0:00:28]} 74. Rc4 {[%clk 0:00:03]}  Bb8 {[%clk 0:00:22]} 75. Rc5+ {[%clk 0:00:03]}  Kg4 {[%clk 0:00:21]} 76. Rc4+ {[%clk 0:00:03]}  Kg3 {[%clk 0:00:19]} 77. Kf1 {[%clk 0:00:03]}  Kf3 {[%clk 0:00:16]} 78. Rc2 {[%clk 0:00:03]}  Kg3 {[%clk 0:00:10]} 79. Rb2 {[%clk 0:00:03]}  Be5 {[%clk 0:00:09]} 80. Rc2 {[%clk 0:00:03]}  Bd4 {[%clk 0:00:08]} 81. Rc8 {[%clk 0:00:02]}  Be5 {[%clk 0:00:06]} 0-1


[Site "https://www.chess.com"]

[Event "Late Titled Tuesday Blitz February 8 2022"]
[White "Song, Guannan Terry"]
[Black "Kosakowski, Jakub"]
[WhiteFideId "2614189"]
[BlackFideId "1185080"]
[WhiteElo "2115"]
[BlackElo "2476"]
[Result "1/2-1/2"]
[Round "05"]
[TimeControl "180+1"]
[Date "2022.02.08"]
[WhiteClock "0:00:04"]
[BlackClock "0:00:04"]

1. e4 {[%clk 0:03:00]}  e5 {[%clk 0:02:59]} 2. Nf3 {[%clk 0:03:00]}  Nf6 {[%clk 0:02:59]} 3. d4 {[%clk 0:03:00]}  Nxe4 {[%clk 0:02:58]} 4. Bd3 {[%clk 0:03:00]}  d5 {[%clk 0:02:57]} 5. Nxe5 {[%clk 0:03:00]}  Nd7 {[%clk 0:02:57]} 6. Nxd7 {[%clk 0:02:58]}  Bxd7 {[%clk 0:02:57]} 7. Nd2 {[%clk 0:02:58]}  Nxd2 {[%clk 0:02:48]} 8. Bxd2 {[%clk 0:02:59]}  Bd6 {[%clk 0:02:48]} 9. O-O {[%clk 0:02:58]}  O-O {[%clk 0:02:48]} 10. Qh5 {[%clk 0:02:57]}  f5 {[%clk 0:02:44]} 11. Qf3 {[%clk 0:02:58]}  c6 {[%clk 0:02:40]} 12. Bf4 {[%clk 0:02:55]}  Qc7 {[%clk 0:02:38]} 13. Bxd6 {[%clk 0:02:56]}  Qxd6 {[%clk 0:02:39]} 14. Rfe1 {[%clk 0:02:55]}  Rae8 {[%clk 0:02:33]} 15. c3 {[%clk 0:02:51]}  Re7 {[%clk 0:02:25]} 16. h3 {[%clk 0:02:16]}  Rfe8 {[%clk 0:02:20]} 17. Re3 {[%clk 0:02:12]}  Rxe3 {[%clk 0:02:18]} 18. fxe3 {[%clk 0:02:13]}  g6 {[%clk 0:02:13]} 19. Qf4 {[%clk 0:02:03]}  Qe7 {[%clk 0:02:10]} 20. Re1 {[%clk 0:02:00]}  Kg7 {[%clk 0:02:09]} 21. h4 {[%clk 0:01:55]}  h6 {[%clk 0:02:06]} 22. Qf2 {[%clk 0:01:48]}  Bc8 {[%clk 0:02:02]} 23. g3 {[%clk 0:01:43]}  b6 {[%clk 0:01:56]} 24. a3 {[%clk 0:01:40]}  c5 {[%clk 0:01:53]} 25. Bf1 {[%clk 0:01:29]}  c4 {[%clk 0:01:45]} 26. Bg2 {[%clk 0:01:28]}  Be6 {[%clk 0:01:45]} 27. Qf4 {[%clk 0:01:25]}  Bf7 {[%clk 0:01:44]} 28. Qf2 {[%clk 0:01:19]}  b5 {[%clk 0:01:43]} 29. Bf3 {[%clk 0:01:18]}  a5 {[%clk 0:01:41]} 30. Qg2 {[%clk 0:01:18]}  Qd6 {[%clk 0:01:40]} 31. Kf2 {[%clk 0:01:09]}  b4 {[%clk 0:01:38]} 32. axb4 {[%clk 0:01:09]}  axb4 {[%clk 0:01:39]} 33. Re2 {[%clk 0:01:09]}  g5 {[%clk 0:01:26]} 34. hxg5 {[%clk 0:01:07]}  hxg5 {[%clk 0:01:27]} 35. g4 {[%clk 0:00:53]}  fxg4 {[%clk 0:01:06]} 36. Bxg4 {[%clk 0:00:50]}  Bg6 {[%clk 0:01:02]} 37. Kg1 {[%clk 0:00:44]}  Rh8 {[%clk 0:00:55]} 38. Bf3 {[%clk 0:00:37]}  Rh4 {[%clk 0:00:38]} 39. Rf2 {[%clk 0:00:35]}  bxc3 {[%clk 0:00:30]} 40. bxc3 {[%clk 0:00:35]}  Kh6 {[%clk 0:00:25]} 41. Bxd5 {[%clk 0:00:33]}  Qa3 {[%clk 0:00:25]} 42. Qf1 {[%clk 0:00:20]}  Qxc3 {[%clk 0:00:22]} 43. Rf3 {[%clk 0:00:16]}  Qd2 {[%clk 0:00:19]} 44. Qf2 {[%clk 0:00:14]}  c3 {[%clk 0:00:19]} 45. Qxd2 {[%clk 0:00:10]}  cxd2 {[%clk 0:00:20]} 46. Bb3 {[%clk 0:00:08]}  Bh5 {[%clk 0:00:17]} 47. Rf6+ {[%clk 0:00:06]}  Kg7 {[%clk 0:00:17]} 48. Rf1 {[%clk 0:00:07]}  Rh3 {[%clk 0:00:17]} 49. Bd1 {[%clk 0:00:06]}  g4 {[%clk 0:00:12]} 50. Rf2 {[%clk 0:00:03]}  Rxe3 {[%clk 0:00:11]} 51. Rxd2 {[%clk 0:00:03]}  Kf6 {[%clk 0:00:09]} 52. Kf2 {[%clk 0:00:03]}  Ra3 {[%clk 0:00:09]} 53. d5 {[%clk 0:00:03]}  Ke7 {[%clk 0:00:08]} 54. d6+ {[%clk 0:00:04]}  Kd7 {[%clk 0:00:08]} 55. Be2 {[%clk 0:00:04]}  g3+ {[%clk 0:00:07]} 56. Kg2 {[%clk 0:00:01]}  Bg6 {[%clk 0:00:05]} 57. Bf3 {[%clk 0:00:02]}  Bd3 {[%clk 0:00:03]} 58. Kxg3 {[%clk 0:00:02]}  Be4 {[%clk 0:00:03]} 59. Rf2 {[%clk 0:00:02]}  Kxd6 {[%clk 0:00:04]} 60. Kf4 {[%clk 0:00:02]}  Bxf3 {[%clk 0:00:04]} 61. Rxf3 {[%clk 0:00:03]}  Rxf3+ {[%clk 0:00:04]} 62. Kxf3 {[%clk 0:00:04]} 1/2-1/2


[Site "https://www.chess.com"]

[Event "Late Titled Tuesday Blitz February 8 2022"]
[White "Stanisz, Patryk"]
[Black "Jarocka, Liwia"]
[WhiteFideId "1123106"]
[BlackFideId "21807558"]
[WhiteElo "1876"]
[BlackElo "1896"]
[Result "1/2-1/2"]
[Round "05"]
[TimeControl "180+1"]
[Date "2022.02.09"]
[WhiteClock "0:00:04"]
[BlackClock "0:00:50"]

1. Nf3 {[%clk 0:02:59]}  d6 {[%clk 0:02:55]} 2. c4 {[%clk 0:02:58]}  Nf6 {[%clk 0:02:55]} 3. Nc3 {[%clk 0:02:59]}  g6 {[%clk 0:02:55]} 4. b3 {[%clk 0:02:59]}  Bg7 {[%clk 0:02:56]} 5. Bb2 {[%clk 0:02:59]}  e5 {[%clk 0:02:56]} 6. e3 {[%clk 0:03:00]}  O-O {[%clk 0:02:55]} 7. d4 {[%clk 0:02:59]}  exd4 {[%clk 0:02:55]} 8. exd4 {[%clk 0:03:00]}  Re8+ {[%clk 0:02:55]} 9. Be2 {[%clk 0:03:01]}  Bg4 {[%clk 0:02:55]} 10. O-O {[%clk 0:03:01]}  Nc6 {[%clk 0:02:55]} 11. d5 {[%clk 0:02:59]}  Bxf3 {[%clk 0:02:55]} 12. Bxf3 {[%clk 0:02:59]}  Ne5 {[%clk 0:02:55]} 13. Be2 {[%clk 0:03:00]}  a5 {[%clk 0:02:53]} 14. h3 {[%clk 0:02:56]}  Ned7 {[%clk 0:02:52]} 15. Nb5 {[%clk 0:02:54]}  Nc5 {[%clk 0:02:51]} 16. Bf3 {[%clk 0:02:49]}  Qd7 {[%clk 0:02:45]} 17. Qc2 {[%clk 0:02:43]}  Re7 {[%clk 0:02:43]} 18. Rae1 {[%clk 0:02:40]}  Rae8 {[%clk 0:02:43]} 19. Rxe7 {[%clk 0:02:41]}  Rxe7 {[%clk 0:02:44]} 20. Qd2 {[%clk 0:02:21]}  b6 {[%clk 0:02:31]} 21. Re1 {[%clk 0:02:20]}  Nfe4 {[%clk 0:02:22]} 22. Bxe4 {[%clk 0:01:58]}  Nxe4 {[%clk 0:02:21]} 23. Qc2 {[%clk 0:01:51]}  Bxb2 {[%clk 0:02:20]} 24. Qxb2 {[%clk 0:01:52]}  Nc5 {[%clk 0:02:20]} 25. Qd2 {[%clk 0:01:32]}  f6 {[%clk 0:02:10]} 26. Re3 {[%clk 0:01:23]}  Re5 {[%clk 0:02:00]} 27. f4 {[%clk 0:01:21]}  Re4 {[%clk 0:01:55]} 28. Qe1 {[%clk 0:01:09]}  f5 {[%clk 0:01:53]} 29. Rxe4 {[%clk 0:01:03]}  fxe4 {[%clk 0:01:52]} 30. Qh4 {[%clk 0:00:48]}  Kg7 {[%clk 0:01:16]} 31. Nd4 {[%clk 0:00:29]}  Qe8 {[%clk 0:01:00]} 32. f5 {[%clk 0:00:18]}  Qe5 {[%clk 0:01:00]} 33. Ne6+ {[%clk 0:00:13]}  Nxe6 {[%clk 0:00:59]} 34. fxe6 {[%clk 0:00:14]}  e3 {[%clk 0:00:57]} 35. Qe7+ {[%clk 0:00:13]}  Kh6 {[%clk 0:00:55]} 36. Qf8+ {[%clk 0:00:13]}  Kh5 {[%clk 0:00:50]} 37. Qf3+ {[%clk 0:00:11]}  Kh6 {[%clk 0:00:49]} 38. Qf8+ {[%clk 0:00:11]}  Kh5 {[%clk 0:00:50]} 39. Qf3+ {[%clk 0:00:05]}  Kh6 {[%clk 0:00:50]} 40. Qf8+ {[%clk 0:00:04]} 1/2-1/2


[Site "https://www.chess.com"]

[Event "Late Titled Tuesday Blitz February 8 2022"]
[White "Stankovic, Ivan G"]
[Black "Einarsson, Halldor Gretar"]
[WhiteFideId "902837"]
[BlackFideId "2300150"]
[WhiteElo "2195"]
[BlackElo "2114"]
[Result "1-0"]
[Round "05"]
[TimeControl "180+1"]
[Date "2022.02.09"]
[WhiteClock "0:00:48"]
[BlackClock "0:01:02"]

1. e4 {[%clk 0:02:08]}  e5 {[%clk 0:02:58]} 2. d4 {[%clk 0:02:07]}  exd4 {[%clk 0:02:56]} 3. Qxd4 {[%clk 0:02:08]}  Nc6 {[%clk 0:02:54]} 4. Qe3 {[%clk 0:02:08]}  g6 {[%clk 0:02:42]} 5. Nc3 {[%clk 0:02:08]}  Bg7 {[%clk 0:02:40]} 6. Bd2 {[%clk 0:02:09]}  Nf6 {[%clk 0:02:35]} 7. Nge2 {[%clk 0:02:09]}  O-O {[%clk 0:02:34]} 8. O-O-O {[%clk 0:02:09]}  Re8 {[%clk 0:02:33]} 9. Nf4 {[%clk 0:02:09]}  Nxe4 {[%clk 0:01:39]} 10. Nxe4 {[%clk 0:02:07]}  d5 {[%clk 0:01:38]} 11. Nxd5 {[%clk 0:02:08]}  Bf5 {[%clk 0:01:31]} 12. Ndc3 {[%clk 0:01:49]}  Bxc3 {[%clk 0:01:30]} 13. Bxc3 {[%clk 0:01:46]}  Rxe4 {[%clk 0:01:16]} 14. Rxd8+ {[%clk 0:01:43]}  Rxd8 {[%clk 0:01:16]} 15. Qh6 {[%clk 0:01:35]}  Ne5 {[%clk 0:01:13]} 16. Bd3 {[%clk 0:01:28]}  Rxd3 {[%clk 0:01:09]} 17. cxd3 {[%clk 0:01:27]}  Nxd3+ {[%clk 0:01:09]} 18. Kd2 {[%clk 0:01:23]}  Ne5 {[%clk 0:01:03]} 19. Re1 {[%clk 0:01:00]}  Nc4+ {[%clk 0:01:02]} 20. Kd1 {[%clk 0:00:48]} 1-0


[Site "https://www.chess.com"]

[Event "Late Titled Tuesday Blitz February 8 2022"]
[White "Suarez Uriel, Adrian"]
[Black "Daianu, Cristian-Clement"]
[WhiteFideId "22230874"]
[BlackFideId "1208926"]
[WhiteElo "2316"]
[BlackElo "2159"]
[Result "0-1"]
[Round "05"]
[TimeControl "180+1"]
[Date "2022.02.09"]
[WhiteClock "0:00:05"]
[BlackClock "0:00:16"]

1. d4 {[%clk 0:03:00]}  d6 {[%clk 0:02:58]} 2. c4 {[%clk 0:03:00]}  e5 {[%clk 0:02:58]} 3. Nf3 {[%clk 0:02:57]}  e4 {[%clk 0:02:56]} 4. Nfd2 {[%clk 0:02:55]}  f5 {[%clk 0:02:56]} 5. e3 {[%clk 0:02:54]}  Nf6 {[%clk 0:02:57]} 6. Nc3 {[%clk 0:02:55]}  Be7 {[%clk 0:02:56]} 7. Be2 {[%clk 0:02:54]}  O-O {[%clk 0:02:57]} 8. O-O {[%clk 0:02:54]}  Kh8 {[%clk 0:02:53]} 9. f3 {[%clk 0:02:54]}  exf3 {[%clk 0:02:51]} 10. Bxf3 {[%clk 0:02:51]}  c6 {[%clk 0:02:52]} 11. e4 {[%clk 0:02:51]}  fxe4 {[%clk 0:02:45]} 12. Ndxe4 {[%clk 0:02:52]}  Nbd7 {[%clk 0:02:42]} 13. Qc2 {[%clk 0:02:49]}  Qe8 {[%clk 0:02:37]} 14. b3 {[%clk 0:02:43]}  Nxe4 {[%clk 0:02:37]} 15. Nxe4 {[%clk 0:02:42]}  Nf6 {[%clk 0:02:38]} 16. Ba3 {[%clk 0:02:38]}  Qg6 {[%clk 0:02:28]} 17. Rae1 {[%clk 0:02:31]}  Bf5 {[%clk 0:02:28]} 18. Qe2 {[%clk 0:02:25]}  Rae8 {[%clk 0:02:20]} 19. Nxf6 {[%clk 0:02:17]}  Bxf6 {[%clk 0:02:15]} 20. Qd2 {[%clk 0:02:18]}  Bd3 {[%clk 0:02:11]} 21. Rxe8 {[%clk 0:01:50]}  Rxe8 {[%clk 0:02:12]} 22. Re1 {[%clk 0:01:50]}  Bxd4+ {[%clk 0:02:01]} 23. Kh1 {[%clk 0:01:51]}  Rxe1+ {[%clk 0:01:34]} 24. Qxe1 {[%clk 0:01:49]}  Be5 {[%clk 0:01:35]} 25. Qh4 {[%clk 0:01:44]}  h6 {[%clk 0:01:28]} 26. Bc1 {[%clk 0:01:23]}  Bb1 {[%clk 0:01:20]} 27. Be3 {[%clk 0:01:09]}  Bf6 {[%clk 0:01:10]} 28. Qf4 {[%clk 0:01:01]}  Qd3 {[%clk 0:01:05]} 29. Kg1 {[%clk 0:00:51]}  Bxa2 {[%clk 0:00:58]} 30. Be4 {[%clk 0:00:49]}  Qd1+ {[%clk 0:00:57]} 31. Kf2 {[%clk 0:00:49]}  Bb1 {[%clk 0:00:48]} 32. Bxb1 {[%clk 0:00:36]}  Qxb1 {[%clk 0:00:49]} 33. Qxd6 {[%clk 0:00:33]}  Qxb3 {[%clk 0:00:46]} 34. c5 {[%clk 0:00:33]}  Qa2+ {[%clk 0:00:29]} 35. Kg3 {[%clk 0:00:25]}  Qd5 {[%clk 0:00:27]} 36. Qb8+ {[%clk 0:00:23]}  Kh7 {[%clk 0:00:27]} 37. Qxb7 {[%clk 0:00:22]}  Be5+ {[%clk 0:00:27]} 38. Kf2 {[%clk 0:00:21]}  Qe4 {[%clk 0:00:18]} 39. Qxa7 {[%clk 0:00:19]}  Qf5+ {[%clk 0:00:17]} 40. Ke2 {[%clk 0:00:17]}  Qc2+ {[%clk 0:00:17]} 41. Kf3 {[%clk 0:00:17]}  Bxh2 {[%clk 0:00:17]} 42. Qd7 {[%clk 0:00:14]}  Qg6 {[%clk 0:00:16]} 43. Bd4 {[%clk 0:00:13]}  Qg3+ {[%clk 0:00:16]} 44. Ke4 {[%clk 0:00:11]}  Qxg2+ {[%clk 0:00:16]} 45. Kd3 {[%clk 0:00:11]}  Qf3+ {[%clk 0:00:16]} 46. Kc4 {[%clk 0:00:11]}  Qg2 {[%clk 0:00:15]} 47. Kb4 {[%clk 0:00:09]}  Qg6 {[%clk 0:00:15]} 48. Ka5 {[%clk 0:00:09]}  h5 {[%clk 0:00:15]} 49. Kb6 {[%clk 0:00:09]}  h4 {[%clk 0:00:15]} 50. Qxc6 {[%clk 0:00:07]}  h3 {[%clk 0:00:15]} 51. Qxg6+ {[%clk 0:00:03]}  Kxg6 {[%clk 0:00:15]} 52. c6 {[%clk 0:00:04]}  Bg3 {[%clk 0:00:15]} 53. Bg1 {[%clk 0:00:04]}  h2 {[%clk 0:00:15]} 54. Bxh2 {[%clk 0:00:04]}  Bxh2 {[%clk 0:00:16]} 55. c7 {[%clk 0:00:04]}  Bxc7+ {[%clk 0:00:15]} 56. Kxc7 {[%clk 0:00:05]}  Kf5 {[%clk 0:00:16]} 0-1


[Site "https://www.chess.com"]

[Event "Late Titled Tuesday Blitz February 8 2022"]
[White "Tang, Andrew"]
[Black "Iskusnyh, Sergei"]
[WhiteFideId "2059630"]
[BlackFideId "4120027"]
[WhiteElo "2584"]
[BlackElo "2492"]
[Result "1-0"]
[Round "05"]
[TimeControl "180+1"]
[Date "2022.02.08"]
[WhiteClock "0:00:10"]
[BlackClock "0:00:02"]

1. d4 {[%clk 0:03:00]}  d5 {[%clk 0:02:55]} 2. Bf4 {[%clk 0:03:00]}  Nf6 {[%clk 0:02:50]} 3. e3 {[%clk 0:03:01]}  c5 {[%clk 0:02:49]} 4. Nc3 {[%clk 0:03:00]}  cxd4 {[%clk 0:02:47]} 5. exd4 {[%clk 0:03:00]}  Bg4 {[%clk 0:02:46]} 6. Nf3 {[%clk 0:03:00]}  Nc6 {[%clk 0:02:45]} 7. Be2 {[%clk 0:02:00]}  e6 {[%clk 0:02:42]} 8. h3 {[%clk 0:01:46]}  Bxf3 {[%clk 0:02:41]} 9. Bxf3 {[%clk 0:01:40]}  Bd6 {[%clk 0:02:40]} 10. Be3 {[%clk 0:01:33]}  O-O {[%clk 0:02:38]} 11. O-O {[%clk 0:01:29]}  a6 {[%clk 0:02:33]} 12. Ne2 {[%clk 0:01:01]}  Qc7 {[%clk 0:02:31]} 13. Nc1 {[%clk 0:01:01]}  Rad8 {[%clk 0:02:18]} 14. Nd3 {[%clk 0:00:59]}  Ne4 {[%clk 0:02:17]} 15. c3 {[%clk 0:00:55]}  f5 {[%clk 0:02:16]} 16. Qe2 {[%clk 0:00:48]}  Kh8 {[%clk 0:01:57]} 17. Rad1 {[%clk 0:00:47]}  g5 {[%clk 0:01:44]} 18. Nc5 {[%clk 0:00:25]}  Qe7 {[%clk 0:01:21]} 19. Nxe4 {[%clk 0:00:17]}  fxe4 {[%clk 0:01:17]} 20. Bg4 {[%clk 0:00:17]}  Bb8 {[%clk 0:01:12]} 21. Bc1 {[%clk 0:00:06]}  Rf7 {[%clk 0:00:56]} 22. g3 {[%clk 0:00:06]}  Rdf8 {[%clk 0:00:54]} 23. Kg2 {[%clk 0:00:06]}  Qd6 {[%clk 0:00:46]} 24. Bxg5 {[%clk 0:00:05]}  Ne7 {[%clk 0:00:37]} 25. Bh5 {[%clk 0:00:03]}  Rf5 {[%clk 0:00:33]} 26. h4 {[%clk 0:00:03]}  Ng6 {[%clk 0:00:31]} 27. Bxg6 {[%clk 0:00:04]}  hxg6 {[%clk 0:00:31]} 28. Qg4 {[%clk 0:00:04]}  Kg8 {[%clk 0:00:17]} 29. Bf4 {[%clk 0:00:03]}  Rxf4 {[%clk 0:00:15]} 30. gxf4 {[%clk 0:00:04]}  Qxf4 {[%clk 0:00:13]} 31. Qxg6+ {[%clk 0:00:03]}  Kh8 {[%clk 0:00:13]} 32. Qh5+ {[%clk 0:00:03]}  Kg7 {[%clk 0:00:12]} 33. Qg5+ {[%clk 0:00:04]}  Qxg5+ {[%clk 0:00:09]} 34. hxg5 {[%clk 0:00:05]}  Rf3 {[%clk 0:00:09]} 35. Rh1 {[%clk 0:00:05]}  Bf4 {[%clk 0:00:08]} 36. Rh3 {[%clk 0:00:06]}  Rxh3 {[%clk 0:00:04]} 37. Kxh3 {[%clk 0:00:07]}  Bxg5 {[%clk 0:00:05]} 38. Kg4 {[%clk 0:00:07]}  Kf6 {[%clk 0:00:05]} 39. f3 {[%clk 0:00:07]}  exf3 {[%clk 0:00:03]} 40. Kxf3 {[%clk 0:00:08]}  b5 {[%clk 0:00:03]} 41. Ke2 {[%clk 0:00:08]}  a5 {[%clk 0:00:03]} 42. Kd3 {[%clk 0:00:09]}  a4 {[%clk 0:00:03]} 43. b3 {[%clk 0:00:09]}  axb3 {[%clk 0:00:02]} 44. axb3 {[%clk 0:00:10]} 1-0


[Site "https://www.chess.com"]